[Event "*** Titled Tuesday Blitz"]
[Site "Chess.com"]
[Date "2018.09.04"]
[Round "5"]
[White "PowerThinking2650"]
[Black "enriquetejedor"]
[Result "1-0"]
[WhiteElo "2238"]
[BlackElo "2389"]
[TimeControl "180+2"]
[EndTime "14:43:27 PDT"]
[Termination "PowerThinking2650 won by resignation"]

1. e4 {[%clk 0:03:00]} 1... e6 {[%clk 0:02:53.7]} 2. d4 {[%clk 0:02:59.1]} 2...
d5 {[%clk 0:02:47.5]} 3. Nd2 {[%clk 0:02:58.1]} 3... Be7 {[%clk 0:02:36.4]} 4.
Ngf3 {[%clk 0:02:54.2]} 4... Nf6 {[%clk 0:02:32.3]} 5. e5 {[%clk 0:02:52.6]}
5... Nfd7 {[%clk 0:01:51.3]} 6. Bd3 {[%clk 0:02:50.8]} 6... c5 {[%clk
0:01:51.9]} 7. c3 {[%clk 0:02:51.4]} 7... b6 {[%clk 0:01:53.3]} 8. Qe2 {[%clk
0:02:46.4]} 8... a5 {[%clk 0:01:37.6]} 9. Bb5 {[%clk 0:02:45.4]} 9... Ba6 {[%clk
0:01:16.9]} 10. a4 {[%clk 0:02:44]} 10... O-O {[%clk 0:01:10]} 11. O-O {[%clk
0:02:42.8]} 11... Qc8 {[%clk 0:01:06.2]} 12. Re1 {[%clk 0:02:39.4]} 12... c4
{[%clk 0:01:04.7]} 13. Nf1 {[%clk 0:02:34]} 13... Nc6 {[%clk 0:01:04.2]} 14. Ng3
{[%clk 0:02:31.2]} 14... Bxb5 {[%clk 0:01:05.4]} 15. axb5 {[%clk 0:02:31.6]}
15... Na7 {[%clk 0:01:06.8]} 16. Nh5 {[%clk 0:02:29.8]} 16... Nxb5 {[%clk
0:00:57.1]} 17. Bg5 {[%clk 0:02:13.9]} 17... Qe8 {[%clk 0:00:45.1]} 18. Qe3
{[%clk 0:02:10.3]} 18... Nc7 {[%clk 0:00:41.1]} 19. Bh6 {[%clk 0:02:05.7]} 19...
f5 {[%clk 0:00:36]} 20. exf6 {[%clk 0:01:31.9]} 20... Qxh5 {[%clk 0:00:23.1]}
21. fxe7 {[%clk 0:01:06.2]} 21... Rf7 {[%clk 0:00:21.8]} 22. Bf4 {[%clk
0:01:04.9]} 22... Ne8 {[%clk 0:00:09]} 23. Qxe6 {[%clk 0:00:55.3]} 23... Ra7
{[%clk 0:00:04.1]} 24. Ng5 {[%clk 0:00:54]} 24... h6 {[%clk 0:00:05.1]} 25. Nxf7
{[%clk 0:00:53.8]} 25... Qxf7 {[%clk 0:00:07]} 26. Bg3 {[%clk 0:00:46.4]} 26...
Qxe6 {[%clk 0:00:05.1]} 27. Rxe6 {[%clk 0:00:45.8]} 27... Kf7 {[%clk 0:00:06.6]}
28. Rae1 {[%clk 0:00:45.6]} 28... b5 {[%clk 0:00:05.5]} 29. Rc6 {[%clk
0:00:43.7]} 29... b4 {[%clk 0:00:04.2]} 30. Bd6 {[%clk 0:00:29.8]} 30... bxc3
{[%clk 0:00:04.8]} 31. bxc3 {[%clk 0:00:30.3]} 31... Ndf6 {[%clk 0:00:05.1]} 32.
Ba3 {[%clk 0:00:29.7]} 32... Rb7 {[%clk 0:00:04.6]} 33. Ra6 {[%clk 0:00:22.2]}
33... Rb3 {[%clk 0:00:04.1]} 34. Rxa5 {[%clk 0:00:23.1]} 34... Rxc3 {[%clk
0:00:05]} 35. f3 {[%clk 0:00:24.2]} 35... Rd3 {[%clk 0:00:05.8]} 36. Bc5 {[%clk
0:00:24.6]} 36... Rb3 {[%clk 0:00:06.3]} 37. Ra6 {[%clk 0:00:24.4]} 37... Rb7
{[%clk 0:00:06.1]} 38. Rb6 {[%clk 0:00:22.8]} 38... Rc7 {[%clk 0:00:02.9]} 39.
Rbb1 {[%clk 0:00:21.7]} 39... Rc6 {[%clk 0:00:03.2]} 40. Re5 {[%clk 0:00:22]}
40... Rc8 {[%clk 0:00:04]} 41. g4 {[%clk 0:00:22.7]} 41... Nc7 {[%clk
0:00:04.4]} 42. Rb7 {[%clk 0:00:21.4]} 42... Nce8 {[%clk 0:00:04.4]} 43. h4
{[%clk 0:00:21.5]} 43... Rc6 {[%clk 0:00:04.2]} 44. g5 {[%clk 0:00:22]} 44...
Nh5 {[%clk 0:00:05.3]} 45. Rf5+ {[%clk 0:00:22.6]} 45... Ke6 {[%clk 0:00:04.5]}
46. Rf8 {[%clk 0:00:23.4]} 46... Rc8 {[%clk 0:00:05.8]} 47. Rb6+ {[%clk
0:00:23.1]} 47... Kd7 {[%clk 0:00:06.3]} 48. gxh6 {[%clk 0:00:23.8]} 48... gxh6
{[%clk 0:00:07]} 49. Rxh6 {[%clk 0:00:24.8]} 49... Nhg7 {[%clk 0:00:07.6]} 50.
Rg6 {[%clk 0:00:25.1]} 50... Ne6 {[%clk 0:00:08.7]} 51. h5 {[%clk 0:00:22.1]}
51... c3 {[%clk 0:00:10.1]} 52. Ba3 {[%clk 0:00:18.2]} 52... c2 {[%clk
0:00:11.4]} 53. Bc1 {[%clk 0:00:18.3]} 53... Kxe7 {[%clk 0:00:12.7]} 54. Rh8
{[%clk 0:00:18.1]} 54... Rc3 {[%clk 0:00:04.4]} 55. Rh7+ {[%clk 0:00:15.9]}
55... N6g7 {[%clk 0:00:02.9]} 56. h6 {[%clk 0:00:14.6]} 56... Rxf3 {[%clk
0:00:03.9]} 57. Rgxg7+ {[%clk 0:00:13.6]} 57... Kf6 {[%clk 0:00:02.9]} 58. Rf7+
{[%clk 0:00:13.9]} 58... Kg6 {[%clk 0:00:04.4]} 59. Rxf3 {[%clk 0:00:15.3]}
59... Kxh7 {[%clk 0:00:05.9]} 60. Rf7+ {[%clk 0:00:15.8]} 60... Kg6 {[%clk
0:00:06.4]} 61. Rc7 {[%clk 0:00:16.7]} 61... Nf6 {[%clk 0:00:06.2]} 62. Rc6
{[%clk 0:00:17.1]} 62... Kf7 {[%clk 0:00:07.5]} 63. Rxf6+ {[%clk 0:00:17.5]}
63... Kxf6 {[%clk 0:00:09.4]} 64. Kf2 {[%clk 0:00:19.4]} 64... Kg6 {[%clk
0:00:10.7]} 65. Ke3 {[%clk 0:00:20.6]} 1-0

[Event "*** Titled Tuesday Blitz"]
[Site "Chess.com"]
[Date "2018.09.04"]
[Round "5"]
[White "Winehouse83"]
[Black "VerdeNotte"]
[Result "0-1"]
[WhiteElo "2475"]
[BlackElo "2824"]
[TimeControl "180+2"]
[EndTime "14:43:40 PDT"]
[Termination "VerdeNotte won on time"]

1. d4 {[%clk 0:03:01.9]} 1... Nf6 {[%clk 0:03:00.8]} 2. c4 {[%clk 0:03:02.3]}
2... g6 {[%clk 0:03:02]} 3. Nc3 {[%clk 0:03:02.8]} 3... Bg7 {[%clk 0:03:03.2]}
4. e4 {[%clk 0:03:03.3]} 4... d6 {[%clk 0:03:04.4]} 5. Be2 {[%clk 0:03:04.2]}
5... O-O {[%clk 0:03:05.1]} 6. Bg5 {[%clk 0:03:05.7]} 6... c5 {[%clk 0:03:05.4]}
7. d5 {[%clk 0:03:05.2]} 7... h6 {[%clk 0:03:03.2]} 8. Bf4 {[%clk 0:02:51.4]}
8... e5 {[%clk 0:03:03.7]} 9. dxe6 {[%clk 0:02:51.1]} 9... Bxe6 {[%clk
0:03:04.6]} 10. Nf3 {[%clk 0:02:41.2]} 10... Nc6 {[%clk 0:02:54.2]} 11. O-O
{[%clk 0:02:37.8]} 11... Nd4 {[%clk 0:02:52.7]} 12. Nxd4 {[%clk 0:02:23.4]}
12... cxd4 {[%clk 0:02:54.6]} 13. Qxd4 {[%clk 0:02:24.2]} 13... Nd5 {[%clk
0:02:54.4]} 14. Qd2 {[%clk 0:02:16.4]} 14... Nxf4 {[%clk 0:02:50.3]} 15. Qxf4
{[%clk 0:02:17.2]} 15... Rc8 {[%clk 0:02:37.1]} 16. Nd5 {[%clk 0:02:05]} 16...
Bxd5 {[%clk 0:02:32.1]} 17. exd5 {[%clk 0:02:02.5]} 17... Re8 {[%clk 0:02:28.6]}
18. Bd3 {[%clk 0:02:00.6]} 18... h5 {[%clk 0:02:20.7]} 19. Rab1 {[%clk 0:01:48]}
19... Be5 {[%clk 0:02:19.2]} 20. Qd2 {[%clk 0:01:41.6]} 20... Qf6 {[%clk
0:02:17.3]} 21. Rfe1 {[%clk 0:01:06.6]} 21... Bd4 {[%clk 0:02:05.4]} 22. b3
{[%clk 0:00:56.9]} 22... Bc3 {[%clk 0:01:56.2]} 23. Rxe8+ {[%clk 0:00:56.4]}
23... Rxe8 {[%clk 0:01:58.1]} 24. Qc2 {[%clk 0:00:57.8]} 24... b6 {[%clk
0:01:50.9]} 25. Rc1 {[%clk 0:00:55.7]} 25... Bb2 {[%clk 0:01:49.9]} 26. Rb1
{[%clk 0:00:52.1]} 26... Bd4 {[%clk 0:01:48.8]} 27. Qd2 {[%clk 0:00:52.3]} 27...
Kg7 {[%clk 0:01:46.6]} 28. g3 {[%clk 0:00:39.7]} 28... h4 {[%clk 0:01:36.7]} 29.
Qf4 {[%clk 0:00:37.9]} 29... Qxf4 {[%clk 0:01:29.4]} 30. gxf4 {[%clk 0:00:39.8]}
30... f5 {[%clk 0:01:27.4]} 31. Kg2 {[%clk 0:00:30.2]} 31... Kf6 {[%clk
0:01:28.1]} 32. h3 {[%clk 0:00:26.7]} 32... Bc3 {[%clk 0:01:27.8]} 33. Kf3
{[%clk 0:00:27.1]} 33... a5 {[%clk 0:01:22.1]} 34. Rc1 {[%clk 0:00:24.3]} 34...
Bd4 {[%clk 0:01:20.1]} 35. Kg2 {[%clk 0:00:20.6]} 35... Kf7 {[%clk 0:01:13.7]}
36. Kf1 {[%clk 0:00:21.4]} 36... Bg7 {[%clk 0:01:12.3]} 37. Re1 {[%clk
0:00:21.9]} 37... Rd8 {[%clk 0:01:07.3]} 38. Kg2 {[%clk 0:00:21.4]} 38... Bf8
{[%clk 0:01:03]} 39. Re6 {[%clk 0:00:21.5]} 39... Ra8 {[%clk 0:01:00.6]} 40. Bc2
{[%clk 0:00:20.5]} 40... Rc8 {[%clk 0:00:58.6]} 41. Bd3 {[%clk 0:00:20.4]} 41...
Be7 {[%clk 0:00:56.6]} 42. Kf3 {[%clk 0:00:20.7]} 42... Rc7 {[%clk 0:00:52.3]}
43. Ke2 {[%clk 0:00:19.9]} 43... Ra7 {[%clk 0:00:51.9]} 44. Bc2 {[%clk 0:00:20]}
44... Ra8 {[%clk 0:00:52.9]} 45. Kd1 {[%clk 0:00:19.4]} 45... Bf8 {[%clk
0:00:52.6]} 46. Ke2 {[%clk 0:00:20.7]} 46... Rc8 {[%clk 0:00:51.2]} 47. Bd3
{[%clk 0:00:21.6]} 47... Rc5 {[%clk 0:00:51.3]} 48. Kf3 {[%clk 0:00:15.2]} 48...
Be7 {[%clk 0:00:52]} 49. Re1 {[%clk 0:00:14.9]} 49... Rc8 {[%clk 0:00:48.9]} 50.
Re6 {[%clk 0:00:14.6]} 50... Rc7 {[%clk 0:00:43.7]} 51. Re1 {[%clk 0:00:15.1]}
51... Rc5 {[%clk 0:00:43.6]} 52. Re2 {[%clk 0:00:14.4]} 52... Rc8 {[%clk
0:00:36.7]} 53. Re1 {[%clk 0:00:13.9]} 53... Ra8 {[%clk 0:00:33.5]} 54. Bc2
{[%clk 0:00:14.4]} 54... Rg8 {[%clk 0:00:30.8]} 55. Rg1 {[%clk 0:00:13.8]} 55...
Bf6 {[%clk 0:00:27.9]} 56. Re1 {[%clk 0:00:14.8]} 56... Bd4 {[%clk 0:00:24.3]}
57. Re6 {[%clk 0:00:15.1]} 57... Bc5 {[%clk 0:00:24.5]} 58. Bd3 {[%clk
0:00:12.9]} 58... Ra8 {[%clk 0:00:24.1]} 59. Bc2 {[%clk 0:00:14.1]} 59... Ra7
{[%clk 0:00:23.4]} 60. Kg2 {[%clk 0:00:13.2]} 60... Rb7 {[%clk 0:00:21.8]} 61.
Bd3 {[%clk 0:00:12.5]} 61... Rc7 {[%clk 0:00:21.3]} 62. Kf3 {[%clk 0:00:13.2]}
62... Re7 {[%clk 0:00:22.5]} 63. Rxe7+ {[%clk 0:00:11.8]} 63... Kxe7 {[%clk
0:00:24.4]} 64. Bc2 {[%clk 0:00:10.5]} 64... Bd4 {[%clk 0:00:24.5]} 65. Bd3
{[%clk 0:00:11.6]} 65... Kd7 {[%clk 0:00:25.8]} 66. Ke2 {[%clk 0:00:08.8]} 66...
Kc7 {[%clk 0:00:27.1]} 67. Bc2 {[%clk 0:00:09.4]} 67... Kb7 {[%clk 0:00:27.5]}
68. Bd3 {[%clk 0:00:10.7]} 68... Ka6 {[%clk 0:00:28.6]} 69. Ke1 {[%clk
0:00:09.1]} 69... Bc5 {[%clk 0:00:23.4]} 70. Ke2 {[%clk 0:00:09.7]} 70... a4
{[%clk 0:00:24.5]} 71. Kd2 {[%clk 0:00:04.5]} 71... Ka5 {[%clk 0:00:24.4]} 0-1

[Event "*** Titled Tuesday Blitz"]
[Site "Chess.com"]
[Date "2018.09.04"]
[Round "5"]
[White "335394862"]
[Black "twitchTriniCupid"]
[Result "1-0"]
[WhiteElo "2319"]
[BlackElo "2197"]
[TimeControl "180+2"]
[EndTime "14:44:23 PDT"]
[Termination "335394862 won by resignation"]

1. e4 {[%clk 0:03:01.9]} 1... c6 {[%clk 0:03:01]} 2. Nf3 {[%clk 0:03:02.5]} 2...
d5 {[%clk 0:03:02.9]} 3. Nc3 {[%clk 0:03:04]} 3... Bg4 {[%clk 0:03:03.8]} 4. h3
{[%clk 0:03:05.2]} 4... Bxf3 {[%clk 0:03:04.2]} 5. Qxf3 {[%clk 0:03:07.1]} 5...
dxe4 {[%clk 0:03:03.6]} 6. Nxe4 {[%clk 0:03:06.4]} 6... Nd7 {[%clk 0:03:04.8]}
7. Qe3 {[%clk 0:03:03]} 7... e6 {[%clk 0:03:04.9]} 8. d4 {[%clk 0:03:02.6]} 8...
Ngf6 {[%clk 0:03:05]} 9. Bd3 {[%clk 0:02:58.8]} 9... Nxe4 {[%clk 0:03:05]} 10.
Qxe4 {[%clk 0:02:59.1]} 10... Nf6 {[%clk 0:03:03.8]} 11. Qe3 {[%clk 0:03:00]}
11... Qd5 {[%clk 0:02:43.5]} 12. O-O {[%clk 0:02:58.6]} 12... O-O-O {[%clk
0:02:30.2]} 13. c3 {[%clk 0:02:52.1]} 13... Bd6 {[%clk 0:02:30.5]} 14. c4 {[%clk
0:02:48.8]} 14... Qh5 {[%clk 0:02:27]} 15. Be2 {[%clk 0:02:36.7]} 15... Qg6
{[%clk 0:02:24.6]} 16. Bd3 {[%clk 0:02:35.7]} 16... Qh5 {[%clk 0:02:21.3]} 17.
Be2 {[%clk 0:02:36.6]} 17... Qg6 {[%clk 0:02:03.5]} 18. b4 {[%clk 0:02:22.7]}
18... Qe4 {[%clk 0:01:51.9]} 19. a3 {[%clk 0:02:14]} 19... Bc7 {[%clk
0:01:45.7]} 20. Qxe4 {[%clk 0:02:12.3]} 20... Nxe4 {[%clk 0:01:46.4]} 21. Bb2
{[%clk 0:02:10.5]} 21... Rhe8 {[%clk 0:01:36.3]} 22. Rfd1 {[%clk 0:02:09.7]}
22... Bf4 {[%clk 0:01:35.1]} 23. g3 {[%clk 0:02:06.3]} 23... Bg5 {[%clk
0:01:31.8]} 24. Kg2 {[%clk 0:02:04.9]} 24... Bf6 {[%clk 0:01:31.8]} 25. h4
{[%clk 0:02:00.1]} 25... Nd6 {[%clk 0:01:24.9]} 26. g4 {[%clk 0:01:55.2]} 26...
h6 {[%clk 0:01:25.3]} 27. h5 {[%clk 0:01:49.6]} 27... Bg5 {[%clk 0:00:45.2]} 28.
Bd3 {[%clk 0:01:41.3]} 28... f5 {[%clk 0:00:40.5]} 29. c5 {[%clk 0:01:28.9]}
29... Nb5 {[%clk 0:00:35.4]} 30. gxf5 {[%clk 0:01:23.3]} 30... Nxd4 {[%clk
0:00:32.8]} 31. fxe6 {[%clk 0:01:19.2]} 31... Bf6 {[%clk 0:00:18.9]} 32. Bg6
{[%clk 0:01:14.4]} 32... Re7 {[%clk 0:00:19.6]} 33. Rd3 {[%clk 0:00:59.5]} 33...
Nxe6 {[%clk 0:00:17.7]} 34. Bxf6 {[%clk 0:00:57.1]} 34... gxf6 {[%clk
0:00:18.3]} 35. Rxd8+ {[%clk 0:00:55.7]} 35... Nxd8 {[%clk 0:00:18.8]} 36. Bf5+
{[%clk 0:00:52.6]} 36... Kc7 {[%clk 0:00:19.4]} 37. Rd1 {[%clk 0:00:50.7]} 37...
b6 {[%clk 0:00:19.4]} 38. f4 {[%clk 0:00:48.5]} 38... Ne6 {[%clk 0:00:18.5]} 39.
Kg3 {[%clk 0:00:43.9]} 39... bxc5 {[%clk 0:00:19]} 40. Re1 {[%clk 0:00:43.6]}
40... Kd7 {[%clk 0:00:20.2]} 41. bxc5 {[%clk 0:00:42.3]} 41... Re8 {[%clk
0:00:21.4]} 42. Kf2 {[%clk 0:00:35.8]} 42... a5 {[%clk 0:00:20.1]} 43. a4 {[%clk
0:00:36.6]} 43... Re7 {[%clk 0:00:21]} 44. Re4 {[%clk 0:00:34.2]} 44... Re8
{[%clk 0:00:20.1]} 45. Ke3 {[%clk 0:00:32.7]} 45... Re7 {[%clk 0:00:21.4]} 46.
Kd3 {[%clk 0:00:32.7]} 46... Re8 {[%clk 0:00:22.6]} 47. Kc4 {[%clk 0:00:33.6]}
47... Re7 {[%clk 0:00:24]} 48. Kc3 {[%clk 0:00:26.9]} 48... Re8 {[%clk 0:00:25]}
49. Kd3 {[%clk 0:00:21.4]} 49... Re7 {[%clk 0:00:26.2]} 50. Ke3 {[%clk
0:00:22.5]} 50... Re8 {[%clk 0:00:27.1]} 51. Rd4+ {[%clk 0:00:22.5]} 51... Kc7
{[%clk 0:00:24.1]} 52. Re4 {[%clk 0:00:23.1]} 52... Kd7 {[%clk 0:00:25.3]} 53.
Kf2 {[%clk 0:00:23.7]} 53... Re7 {[%clk 0:00:25.9]} 54. Rd4+ {[%clk 0:00:23.2]}
54... Kc7 {[%clk 0:00:17.5]} 55. Re4 {[%clk 0:00:22.4]} 55... Kd7 {[%clk
0:00:18.8]} 56. Kg3 {[%clk 0:00:21.3]} 56... Re8 {[%clk 0:00:17.9]} 57. Bg6
{[%clk 0:00:21.8]} 57... Re7 {[%clk 0:00:18.6]} 58. Bf5 {[%clk 0:00:17.2]} 58...
Re8 {[%clk 0:00:18.9]} 59. Re1 {[%clk 0:00:18.2]} 59... Re7 {[%clk 0:00:19.2]}
60. Kf2 {[%clk 0:00:19.3]} 60... Re8 {[%clk 0:00:19.8]} 61. Rd1+ {[%clk
0:00:19.9]} 61... Kc7 {[%clk 0:00:20]} 62. Rd6 {[%clk 0:00:21.3]} 62... Nxc5
{[%clk 0:00:20.3]} 63. Rxf6 {[%clk 0:00:22.4]} 63... Rh8 {[%clk 0:00:18.2]} 64.
Bc2 {[%clk 0:00:22.2]} 64... Nd7 {[%clk 0:00:16.4]} 65. Rf7 {[%clk 0:00:22.2]}
65... Rf8 {[%clk 0:00:16.9]} 66. Rh7 {[%clk 0:00:16.6]} 66... Rf6 {[%clk
0:00:16.7]} 67. Kg3 {[%clk 0:00:15.9]} 67... Kd6 {[%clk 0:00:17]} 68. Bg6 {[%clk
0:00:13.7]} 68... Nc5 {[%clk 0:00:13.6]} 69. Rxh6 {[%clk 0:00:12.1]} 69... Nxa4
{[%clk 0:00:14.9]} 70. Rh8 {[%clk 0:00:12.2]} 70... Nc3 {[%clk 0:00:15.7]} 71.
Ra8 {[%clk 0:00:12.3]} 71... a4 {[%clk 0:00:14.3]} 72. f5 {[%clk 0:00:13.5]}
72... Ke5 {[%clk 0:00:14.2]} 73. h6 {[%clk 0:00:13.7]} 73... Ne2+ {[%clk
0:00:09.2]} 74. Kg4 {[%clk 0:00:13.4]} 74... Nf4 {[%clk 0:00:05.9]} 75. Ra5+
{[%clk 0:00:09.4]} 75... Nd5 {[%clk 0:00:04.6]} 76. Rxa4 {[%clk 0:00:10.5]}
76... Rf8 {[%clk 0:00:05]} 77. Ra7 {[%clk 0:00:10.1]} 77... c5 {[%clk
0:00:04.7]} 78. h7 {[%clk 0:00:10.6]} 78... Rh8 {[%clk 0:00:03.9]} 79. Kg5
{[%clk 0:00:11.4]} 79... c4 {[%clk 0:00:02.5]} 80. Kh6 {[%clk 0:00:12.5]} 80...
c3 {[%clk 0:00:03.7]} 81. Kg7 {[%clk 0:00:12.7]} 81... Rc8 {[%clk 0:00:05.6]}
82. h8=Q {[%clk 0:00:11.6]} 82... Rxh8 {[%clk 0:00:07.5]} 83. Kxh8 {[%clk
0:00:13]} 83... Kd4 {[%clk 0:00:09]} 84. Ra1 {[%clk 0:00:11.9]} 84... c2 {[%clk
0:00:10.2]} 85. f6 {[%clk 0:00:11.9]} 85... Nxf6 {[%clk 0:00:10]} 86. Bxc2
{[%clk 0:00:13.3]} 86... Kc3 {[%clk 0:00:11.7]} 87. Bg6 {[%clk 0:00:13.9]} 87...
Nd5 {[%clk 0:00:12.3]} 88. Rh1 {[%clk 0:00:14.8]} 1-0

[Event "*** Titled Tuesday Blitz"]
[Site "Chess.com"]
[Date "2018.09.04"]
[Round "5"]
[White "Faqade"]
[Black "afgano29"]
[Result "0-1"]
[WhiteElo "2472"]
[BlackElo "2688"]
[TimeControl "180+2"]
[EndTime "14:44:32 PDT"]
[Termination "afgano29 won by resignation"]

1. e4 {[%clk 0:03:01.9]} 1... c5 {[%clk 0:03:00.3]} 2. Nf3 {[%clk 0:03:01.9]}
2... Nc6 {[%clk 0:03:01.2]} 3. Bb5 {[%clk 0:03:01.2]} 3... d6 {[%clk 0:03:00.3]}
4. Bxc6+ {[%clk 0:03:01]} 4... bxc6 {[%clk 0:03:02.2]} 5. e5 {[%clk 0:03:02.3]}
5... Bg4 {[%clk 0:03:02.5]} 6. h3 {[%clk 0:03:01]} 6... Bh5 {[%clk 0:03:03.3]}
7. d3 {[%clk 0:03:00]} 7... e6 {[%clk 0:03:03.5]} 8. exd6 {[%clk 0:03:00.2]}
8... Bxd6 {[%clk 0:03:05.4]} 9. Nbd2 {[%clk 0:03:00.8]} 9... Nf6 {[%clk
0:03:00.9]} 10. Ne4 {[%clk 0:03:01.9]} 10... Nxe4 {[%clk 0:02:32.8]} 11. dxe4
{[%clk 0:03:03.8]} 11... O-O {[%clk 0:02:28.2]} 12. O-O {[%clk 0:03:03.4]} 12...
Qc7 {[%clk 0:02:23.9]} 13. Qd3 {[%clk 0:03:01.7]} 13... Rfd8 {[%clk 0:02:17.5]}
14. Qc3 {[%clk 0:03:01.2]} 14... Qb6 {[%clk 0:02:11.6]} 15. b3 {[%clk 0:02:50]}
15... Qb4 {[%clk 0:02:03.9]} 16. Qe3 {[%clk 0:02:44.6]} 16... c4 {[%clk
0:01:59.1]} 17. Bb2 {[%clk 0:02:44]} 17... Bf8 {[%clk 0:01:55.8]} 18. Ne5 {[%clk
0:02:40.2]} 18... Qd2 {[%clk 0:01:32]} 19. Nxc4 {[%clk 0:01:48.6]} 19... Qxc2
{[%clk 0:01:31.2]} 20. Rfc1 {[%clk 0:01:49.1]} 20... Qe2 {[%clk 0:01:18]} 21. f3
{[%clk 0:01:19.2]} 21... Qxe3+ {[%clk 0:00:36.6]} 22. Nxe3 {[%clk 0:01:21.1]}
22... Rac8 {[%clk 0:00:37.3]} 23. Kf1 {[%clk 0:01:05.3]} 23... f6 {[%clk
0:00:37.9]} 24. Rd1 {[%clk 0:01:03.4]} 24... Bf7 {[%clk 0:00:35.9]} 25. Ke2
{[%clk 0:01:03.6]} 25... e5 {[%clk 0:00:30.1]} 26. h4 {[%clk 0:01:01.8]} 26...
Be6 {[%clk 0:00:30.4]} 27. h5 {[%clk 0:01:01.7]} 27... Kf7 {[%clk 0:00:30.4]}
28. g4 {[%clk 0:01:02.1]} 28... Be7 {[%clk 0:00:28.1]} 29. Rac1 {[%clk 0:01:03]}
29... Rxd1 {[%clk 0:00:27.7]} 30. Rxd1 {[%clk 0:01:03]} 30... a5 {[%clk
0:00:28.3]} 31. Bc3 {[%clk 0:01:02.6]} 31... Bb4 {[%clk 0:00:23.3]} 32. Bxb4
{[%clk 0:01:02.4]} 32... axb4 {[%clk 0:00:25.2]} 33. Rc1 {[%clk 0:01:03.1]}
33... Ra8 {[%clk 0:00:22.1]} 34. Rc2 {[%clk 0:01:02]} 34... Ke7 {[%clk
0:00:22.5]} 35. Nf5+ {[%clk 0:00:58.7]} 35... Bxf5 {[%clk 0:00:22.8]} 36. gxf5
{[%clk 0:01:00.6]} 36... Kd6 {[%clk 0:00:22.6]} 37. Kd3 {[%clk 0:01:02.1]} 37...
Ra5 {[%clk 0:00:21.4]} 38. Rg2 {[%clk 0:01:01.6]} 38... Ra7 {[%clk 0:00:21.3]}
39. Kc4 {[%clk 0:01:02.4]} 39... c5 {[%clk 0:00:15.8]} 40. h6 {[%clk 0:00:43.1]}
40... gxh6 {[%clk 0:00:14.7]} 41. Rh2 {[%clk 0:00:44.6]} 41... Kc6 {[%clk
0:00:08.8]} 42. Rxh6 {[%clk 0:00:45.8]} 42... Rf7 {[%clk 0:00:09.1]} 43. f4
{[%clk 0:00:41.9]} 43... exf4 {[%clk 0:00:08]} 44. e5 {[%clk 0:00:42.9]} 44...
f3 {[%clk 0:00:06.9]} 45. e6 {[%clk 0:00:44.3]} 45... f2 {[%clk 0:00:04.4]} 46.
Rh1 {[%clk 0:00:41.7]} 46... Rg7 {[%clk 0:00:05.7]} 47. Rf1 {[%clk 0:00:23.7]}
47... Rg4+ {[%clk 0:00:06.4]} 48. Kd3 {[%clk 0:00:23.8]} 48... Rf4 {[%clk
0:00:07.9]} 49. Ke3 {[%clk 0:00:20.2]} 49... Rxf5 {[%clk 0:00:08.3]} 50. Ke4
{[%clk 0:00:21.7]} 50... Re5+ {[%clk 0:00:08.6]} 51. Kf4 {[%clk 0:00:23.2]}
51... Rxe6 {[%clk 0:00:08.1]} 52. Rxf2 {[%clk 0:00:24.7]} 52... Rd6 {[%clk
0:00:06]} 53. Rh2 {[%clk 0:00:25.7]} 53... Rd7 {[%clk 0:00:06.4]} 54. Kf5 {[%clk
0:00:26.2]} 54... Rf7 {[%clk 0:00:06.4]} 55. Ke6 {[%clk 0:00:26.3]} 55... Ra7
{[%clk 0:00:07.5]} 56. Kxf6 {[%clk 0:00:26.7]} 56... Kd5 {[%clk 0:00:08.6]} 57.
Rc2 {[%clk 0:00:27.1]} 57... Rc7 {[%clk 0:00:08.5]} 58. Kf5 {[%clk 0:00:26.4]}
58... c4 {[%clk 0:00:09.6]} 59. Rd2+ {[%clk 0:00:27.4]} 59... Kc5 {[%clk
0:00:10.4]} 60. bxc4 {[%clk 0:00:28.9]} 60... Rf7+ {[%clk 0:00:10.6]} 61. Ke6
{[%clk 0:00:29.2]} 61... Rf4 {[%clk 0:00:09.7]} 62. Ke5 {[%clk 0:00:27.5]} 62...
Rxc4 {[%clk 0:00:10.1]} 63. Rh2 {[%clk 0:00:28.8]} 63... Rc1 {[%clk 0:00:08.9]}
64. Rxh7 {[%clk 0:00:28]} 64... Re1+ {[%clk 0:00:10]} 65. Kf4 {[%clk 0:00:29]}
65... Kc4 {[%clk 0:00:11]} 66. Rc7+ {[%clk 0:00:29.5]} 66... Kd3 {[%clk
0:00:09.9]} 67. Kf3 {[%clk 0:00:26.6]} 67... Rf1+ {[%clk 0:00:10.1]} 68. Kg2
{[%clk 0:00:27.4]} 68... Rf8 {[%clk 0:00:10.8]} 69. Kg3 {[%clk 0:00:27.3]} 69...
Ra8 {[%clk 0:00:10.2]} 70. Rd7+ {[%clk 0:00:27.7]} 70... Kc3 {[%clk 0:00:10.8]}
71. Rc7+ {[%clk 0:00:29.2]} 71... Kb2 {[%clk 0:00:10]} 72. Rb7 {[%clk
0:00:30.6]} 72... Ra4 {[%clk 0:00:11]} 73. Kf3 {[%clk 0:00:32.1]} 73... Kxa2
{[%clk 0:00:12.1]} 74. Ke2 {[%clk 0:00:33.7]} 74... b3 {[%clk 0:00:12.9]} 75.
Kd2 {[%clk 0:00:35.1]} 75... b2 {[%clk 0:00:13]} 76. Kc2 {[%clk 0:00:36.6]}
76... Rc4+ {[%clk 0:00:13.2]} 77. Kd3 {[%clk 0:00:38.1]} 77... Rc8 {[%clk
0:00:10.2]} 78. Ra7+ {[%clk 0:00:38.7]} 78... Kb1 {[%clk 0:00:10.9]} 79. Kd2
{[%clk 0:00:39.3]} 79... Rd8+ {[%clk 0:00:11.3]} 80. Ke2 {[%clk 0:00:40]} 80...
Rd4 {[%clk 0:00:09.4]} 81. Ke3 {[%clk 0:00:40.4]} 81... Rd5 {[%clk 0:00:10.7]}
82. Ke4 {[%clk 0:00:37.5]} 82... Rd8 {[%clk 0:00:10.8]} 83. Ke3 {[%clk 0:00:38]}
83... Rd1 {[%clk 0:00:09.3]} 84. Ke2 {[%clk 0:00:38.9]} 84... Rd5 {[%clk
0:00:09.9]} 85. Rc7 {[%clk 0:00:38.1]} 85... Ka2 {[%clk 0:00:09.9]} 86. Ra7+
{[%clk 0:00:39]} 86... Kb3 {[%clk 0:00:11]} 87. Rb7+ {[%clk 0:00:39.9]} 87...
Ka3 {[%clk 0:00:11.9]} 88. Rb8 {[%clk 0:00:38.2]} 88... Rd4 {[%clk 0:00:11.3]}
89. Ke3 {[%clk 0:00:21.1]} 89... Rb4 {[%clk 0:00:11.9]} 90. Ra8+ {[%clk
0:00:22.4]} 90... Kb3 {[%clk 0:00:13.1]} 0-1